[Event "*** Titled Tuesday Blitz"]
[Site "Chess.com"]
[Date "2021.03.02"]
[Round "1"]
[White "Nozdrachev_Leonid"]
[Black "Agoking701"]
[Result "1-0"]
[WhiteElo "2542"]
[BlackElo "2224"]
[TimeControl "180+1"]
[EndTime "10:07:32 PST"]
[Termination "Nozdrachev_Leonid won on time"]

1. e4 {[%clk 0:02:59.6]} 1... c5 {[%clk 0:02:53.8]} 2. c3 {[%clk 0:02:58.4]}
2... d5 {[%clk 0:02:50.9]} 3. exd5 {[%clk 0:02:59.3]} 3... Qxd5 {[%clk
0:02:51.3]} 4. d4 {[%clk 0:02:58]} 4... Nc6 {[%clk 0:02:50.5]} 5. Nf3 {[%clk
0:02:57.8]} 5... Nf6 {[%clk 0:02:48.2]} 6. Be3 {[%clk 0:02:53.5]} 6... cxd4
{[%clk 0:02:43.9]} 7. cxd4 {[%clk 0:02:53.6]} 7... Bg4 {[%clk 0:02:37.6]} 8. Be2
{[%clk 0:02:53]} 8... e6 {[%clk 0:02:37.2]} 9. h3 {[%clk 0:02:53]} 9... Bh5
{[%clk 0:02:35.7]} 10. O-O {[%clk 0:02:53.2]} 10... Be7 {[%clk 0:02:28.7]} 11.
Nc3 {[%clk 0:02:52.2]} 11... Qd6 {[%clk 0:02:29.4]} 12. Qb3 {[%clk 0:02:51.7]}
12... O-O {[%clk 0:02:23.7]} 13. Rfd1 {[%clk 0:02:50.5]} 13... Rfd8 {[%clk
0:02:19.6]} 14. Rac1 {[%clk 0:02:34.7]} 14... Rac8 {[%clk 0:02:17.5]} 15. Qxb7
{[%clk 0:02:28.2]} 15... Rb8 {[%clk 0:02:10.6]} 16. Qa6 {[%clk 0:02:27.3]} 16...
Rb6 {[%clk 0:02:01.4]} 17. Qa4 {[%clk 0:02:24.6]} 17... Rb4 {[%clk 0:01:44.4]}
18. Qa3 {[%clk 0:02:19.4]} 18... Qb8 {[%clk 0:01:39.5]} 19. Qa6 {[%clk
0:02:03.6]} 19... Rb6 {[%clk 0:01:36.5]} 20. Qc4 {[%clk 0:02:03.3]} 20... Nb4
{[%clk 0:01:19.2]} 21. a3 {[%clk 0:01:53.5]} 21... Rc8 {[%clk 0:01:16.3]} 22.
Qxc8+ {[%clk 0:01:38.7]} 22... Qxc8 {[%clk 0:01:11.8]} 23. Nd5 {[%clk
0:01:39.6]} 23... Qd8 {[%clk 0:00:39.7]} 24. Nxb6 {[%clk 0:01:28.3]} 24... axb6
{[%clk 0:00:34.3]} 25. axb4 {[%clk 0:01:27.4]} 25... h6 {[%clk 0:00:27.2]} 26.
Ba6 {[%clk 0:01:19.2]} 26... Kh7 {[%clk 0:00:23.9]} 27. g4 {[%clk 0:01:19.1]}
27... Bg6 {[%clk 0:00:23.4]} 28. Ne5 {[%clk 0:01:19.6]} 28... Bxb4 {[%clk
0:00:19]} 29. h4 {[%clk 0:01:12.6]} 29... h5 {[%clk 0:00:18.6]} 30. Nxg6 {[%clk
0:01:11.7]} 30... fxg6 {[%clk 0:00:17.9]} 31. g5 {[%clk 0:01:03.6]} 31... Ng4
{[%clk 0:00:17.6]} 32. Rc8 {[%clk 0:00:59.4]} 32... Qd6 {[%clk 0:00:16.1]} 33.
Bc4 {[%clk 0:00:41.9]} 33... Qh2+ {[%clk 0:00:14.2]} 34. Kf1 {[%clk 0:00:41.7]}
34... Nxe3+ {[%clk 0:00:09.3]} 35. fxe3 {[%clk 0:00:42.6]} 35... Qh1+ {[%clk
0:00:08.3]} 36. Ke2 {[%clk 0:00:41.8]} 36... Qg2+ {[%clk 0:00:08.7]} 37. Kd3
{[%clk 0:00:40.3]} 37... Qxb2 {[%clk 0:00:09.1]} 38. Bxe6 {[%clk 0:00:37]} 38...
Qa3+ {[%clk 0:00:09.2]} 39. Ke4 {[%clk 0:00:35]} 39... Bf8 {[%clk 0:00:07.7]}
40. Rf1 {[%clk 0:00:33]} 40... Qe7 {[%clk 0:00:07]} 41. Rfxf8 {[%clk 0:00:30.7]}
41... Qxe6+ {[%clk 0:00:06.7]} 42. Kf4 {[%clk 0:00:24.8]} 42... Qd6+ {[%clk
0:00:04]} 43. Kf3 {[%clk 0:00:22.5]} 43... Qd5+ {[%clk 0:00:04.5]} 44. Kf2
{[%clk 0:00:21]} 44... Qa2+ {[%clk 0:00:03.7]} 45. Kg3 {[%clk 0:00:20.8]} 1-0

[Event "*** Titled Tuesday Blitz"]
[Site "Chess.com"]
[Date "2021.03.02"]
[Round "1"]
[White "Rozum_Ivan"]
[Black "zacachess"]
[Result "0-1"]
[WhiteElo "2741"]
[BlackElo "2420"]
[TimeControl "180+1"]
[EndTime "10:07:34 PST"]
[Termination "zacachess won on time"]

1. g3 {[%clk 0:02:55.2]} 1... e5 {[%clk 0:02:58.6]} 2. Bg2 {[%clk 0:02:54.2]}
2... d5 {[%clk 0:02:58.2]} 3. d3 {[%clk 0:02:54.2]} 3... Nf6 {[%clk 0:02:58.2]}
4. Nf3 {[%clk 0:02:53.3]} 4... Nc6 {[%clk 0:02:57.8]} 5. c4 {[%clk 0:02:51]}
5... d4 {[%clk 0:02:54.4]} 6. O-O {[%clk 0:02:45]} 6... Be7 {[%clk 0:02:52.4]}
7. b4 {[%clk 0:02:38.9]} 7... Nxb4 {[%clk 0:02:51.6]} 8. Nxe5 {[%clk 0:02:37.8]}
8... O-O {[%clk 0:02:52.1]} 9. Nd2 {[%clk 0:02:30.1]} 9... Na6 {[%clk
0:02:09.1]} 10. Nb3 {[%clk 0:02:27.5]} 10... Rb8 {[%clk 0:02:04.9]} 11. Nf3
{[%clk 0:02:24.2]} 11... c5 {[%clk 0:02:03.6]} 12. e3 {[%clk 0:02:17]} 12...
dxe3 {[%clk 0:02:02]} 13. Bxe3 {[%clk 0:02:17.9]} 13... b6 {[%clk 0:02:01.1]}
14. d4 {[%clk 0:02:12.8]} 14... cxd4 {[%clk 0:01:57.7]} 15. Nfxd4 {[%clk
0:02:13.7]} 15... Bb7 {[%clk 0:01:50.5]} 16. Nc6 {[%clk 0:02:08.5]} 16... Bxc6
{[%clk 0:01:49.9]} 17. Bxc6 {[%clk 0:02:09.4]} 17... Nb4 {[%clk 0:01:35.6]} 18.
Bg2 {[%clk 0:02:05.3]} 18... Qxd1 {[%clk 0:01:25.7]} 19. Raxd1 {[%clk
0:02:06.2]} 19... Rfd8 {[%clk 0:01:24.9]} 20. a3 {[%clk 0:01:59.1]} 20... Nc2
{[%clk 0:01:23.9]} 21. Bf4 {[%clk 0:01:58.8]} 21... Rxd1 {[%clk 0:01:21.3]} 22.
Rxd1 {[%clk 0:01:58.4]} 22... Rd8 {[%clk 0:01:21.8]} 23. Rxd8+ {[%clk
0:01:53.6]} 23... Bxd8 {[%clk 0:01:22.7]} 24. a4 {[%clk 0:01:54.1]} 24... Kf8
{[%clk 0:01:08.9]} 25. Kf1 {[%clk 0:01:44.4]} 25... Ke7 {[%clk 0:01:05.9]} 26.
Ke2 {[%clk 0:01:44.3]} 26... Nd7 {[%clk 0:00:57.5]} 27. Kd2 {[%clk 0:01:36.8]}
27... Nb4 {[%clk 0:00:56.8]} 28. Nd4 {[%clk 0:01:37.2]} 28... Nc5 {[%clk
0:00:46.5]} 29. Nf5+ {[%clk 0:00:44.3]} 29... Kf6 {[%clk 0:00:43.4]} 30. Nd6
{[%clk 0:00:44.4]} 30... Nxa4 {[%clk 0:00:30.7]} 31. h4 {[%clk 0:00:43.7]} 31...
h6 {[%clk 0:00:30.1]} 32. h5 {[%clk 0:00:37.9]} 32... Nc5 {[%clk 0:00:29.5]} 33.
Ne8+ {[%clk 0:00:35.1]} 33... Ke7 {[%clk 0:00:29.1]} 34. Nxg7 {[%clk 0:00:34.6]}
34... a5 {[%clk 0:00:19.6]} 35. Bxh6 {[%clk 0:00:33.5]} 35... a4 {[%clk
0:00:17.2]} 36. Nf5+ {[%clk 0:00:11.1]} 36... Kf6 {[%clk 0:00:15.7]} 37. Nd4
{[%clk 0:00:09.2]} 37... a3 {[%clk 0:00:14.3]} 38. Nc2 {[%clk 0:00:05.3]} 38...
a2 {[%clk 0:00:13.9]} 39. Na1 {[%clk 0:00:03]} 39... Bc7 {[%clk 0:00:07.8]} 0-1

[Event "*** Titled Tuesday Blitz"]
[Site "Chess.com"]
[Date "2021.03.02"]
[Round "1"]
[White "stasiek18"]
[Black "anon102030"]
[Result "1-0"]
[WhiteElo "2404"]
[BlackElo "2700"]
[TimeControl "180+1"]
[EndTime "10:07:34 PST"]
[Termination "stasiek18 won on time"]

1. d4 {[%clk 0:03:00.9]} 1... Nf6 {[%clk 0:02:59.3]} 2. Bg5 {[%clk 0:03:00]}
2... Ne4 {[%clk 0:02:57.7]} 3. h4 {[%clk 0:03:00]} 3... d5 {[%clk 0:02:54.2]} 4.
Nd2 {[%clk 0:02:59.5]} 4... Nxd2 {[%clk 0:02:43.8]} 5. Qxd2 {[%clk 0:03:00.4]}
5... Nc6 {[%clk 0:02:39.5]} 6. e3 {[%clk 0:02:56]} 6... f6 {[%clk 0:02:36.1]} 7.
Bf4 {[%clk 0:02:53.8]} 7... e5 {[%clk 0:02:34.6]} 8. Bg3 {[%clk 0:02:42]} 8...
a6 {[%clk 0:02:27]} 9. dxe5 {[%clk 0:02:15.3]} 9... fxe5 {[%clk 0:02:23.2]} 10.
O-O-O {[%clk 0:02:14.3]} 10... Be6 {[%clk 0:02:21.1]} 11. Nf3 {[%clk 0:02:10.8]}
11... Bd6 {[%clk 0:02:00.1]} 12. Ng5 {[%clk 0:02:06.5]} 12... Bg8 {[%clk
0:01:44.1]} 13. Be2 {[%clk 0:01:26.4]} 13... Qf6 {[%clk 0:01:36.6]} 14. Bg4
{[%clk 0:01:05.7]} 14... Rd8 {[%clk 0:01:16.4]} 15. Rhf1 {[%clk 0:00:43.2]}
15... h6 {[%clk 0:01:13.5]} 16. Nf3 {[%clk 0:00:35.9]} 16... Bf7 {[%clk
0:00:54.7]} 17. Kb1 {[%clk 0:00:34.4]} 17... e4 {[%clk 0:00:53]} 18. Nd4 {[%clk
0:00:30]} 18... Nxd4 {[%clk 0:00:50.2]} 19. exd4 {[%clk 0:00:30.9]} 19... Bxg3
{[%clk 0:00:47.5]} 20. fxg3 {[%clk 0:00:31.8]} 20... Qe7 {[%clk 0:00:37.5]} 21.
Rf4 {[%clk 0:00:16.8]} 21... O-O {[%clk 0:00:36.9]} 22. Rdf1 {[%clk 0:00:16.6]}
22... Be6 {[%clk 0:00:35.6]} 23. Rxf8+ {[%clk 0:00:14.6]} 23... Rxf8 {[%clk
0:00:34.8]} 24. Rxf8+ {[%clk 0:00:15.5]} 24... Kxf8 {[%clk 0:00:35.2]} 25. Qf4+
{[%clk 0:00:14.4]} 25... Bf7 {[%clk 0:00:33]} 26. Kc1 {[%clk 0:00:12.1]} 26...
g5 {[%clk 0:00:21.8]} 27. hxg5 {[%clk 0:00:13]} 27... hxg5 {[%clk 0:00:22]} 28.
Qf5 {[%clk 0:00:13.3]} 28... Kg7 {[%clk 0:00:20.3]} 29. Kd2 {[%clk 0:00:11.3]}
29... b6 {[%clk 0:00:15.7]} 30. Ke3 {[%clk 0:00:10]} 30... Qf6 {[%clk
0:00:12.6]} 31. Qc8 {[%clk 0:00:06.5]} 31... Qd6 {[%clk 0:00:10.1]} 32. Kf2
{[%clk 0:00:04.2]} 32... Qb4 {[%clk 0:00:09.5]} 33. Qf5 {[%clk 0:00:01.6]} 33...
Qxd4+ {[%clk 0:00:09.2]} 34. Ke2 {[%clk 0:00:02.5]} 34... Qc4+ {[%clk 0:00:09]}
35. Ke3 {[%clk 0:00:02.3]} 35... Qc5+ {[%clk 0:00:08.2]} 36. Ke2 {[%clk
0:00:02.7]} 36... d4 {[%clk 0:00:06.7]} 37. Qxe4 {[%clk 0:00:02.3]} 37... Bc4+
{[%clk 0:00:05]} 38. Kd2 {[%clk 0:00:02.7]} 38... Qb4+ {[%clk 0:00:04.2]} 39.
Kd1 {[%clk 0:00:01.7]} 39... Qxb2 {[%clk 0:00:02.1]} 40. Qe5+ {[%clk 0:00:01.7]}
1-0

[Event "*** Titled Tuesday Blitz"]
[Site "Chess.com"]
[Date "2021.03.02"]
[Round "1"]
[White "frenchpin"]
[Black "JiiHart"]
[Result "1-0"]
[WhiteElo "2504"]
[BlackElo "2089"]
[TimeControl "180+1"]
[EndTime "10:07:35 PST"]
[Termination "frenchpin won on time"]

1. e4 {[%clk 0:03:00.9]} 1... e5 {[%clk 0:02:57.6]} 2. Nf3 {[%clk 0:03:01.2]}
2... Nc6 {[%clk 0:02:57.6]} 3. Bc4 {[%clk 0:03:01.7]} 3... Nf6 {[%clk
0:02:57.6]} 4. Ng5 {[%clk 0:03:01.7]} 4... Bc5 {[%clk 0:02:57.5]} 5. Bxf7+
{[%clk 0:03:01]} 5... Ke7 {[%clk 0:02:56.7]} 6. Bb3 {[%clk 0:03:01.3]} 6... Rf8
{[%clk 0:02:52.6]} 7. d3 {[%clk 0:03:00.8]} 7... d6 {[%clk 0:02:51.9]} 8. Be3
{[%clk 0:03:00.5]} 8... Bg4 {[%clk 0:02:48.5]} 9. f3 {[%clk 0:02:50.1]} 9...
Bxe3 {[%clk 0:02:40.4]} 10. fxg4 {[%clk 0:02:50.3]} 10... Bf2+ {[%clk
0:02:38.9]} 11. Ke2 {[%clk 0:02:37.4]} 11... Nd4+ {[%clk 0:02:34.8]} 12. Kd2
{[%clk 0:02:36.8]} 12... h6 {[%clk 0:02:26.5]} 13. Nh3 {[%clk 0:02:23.3]} 13...
Qd7 {[%clk 0:02:23.3]} 14. Nxf2 {[%clk 0:02:19.6]} 14... Nd5 {[%clk 0:02:04.1]}
15. Rf1 {[%clk 0:02:08]} 15... Nf4 {[%clk 0:01:55.9]} 16. Nc3 {[%clk 0:02:07.2]}
16... c6 {[%clk 0:01:49.9]} 17. g3 {[%clk 0:01:57.1]} 17... Nfe6 {[%clk
0:01:47.1]} 18. Ne2 {[%clk 0:01:52.3]} 18... Nf3+ {[%clk 0:01:42.4]} 19. Kc1
{[%clk 0:01:52.2]} 19... Nxh2 {[%clk 0:01:40.1]} 20. Kd2 {[%clk 0:01:23]} 20...
Nxf1+ {[%clk 0:01:34.3]} 21. Qxf1 {[%clk 0:01:23.9]} 21... Ng5 {[%clk
0:01:28.4]} 22. Qg2 {[%clk 0:01:22.9]} 22... Rf6 {[%clk 0:01:23.8]} 23. Rf1
{[%clk 0:01:17.2]} 23... Raf8 {[%clk 0:01:22.1]} 24. Kc1 {[%clk 0:01:14.4]}
24... a5 {[%clk 0:01:19.6]} 25. a3 {[%clk 0:01:12.9]} 25... b5 {[%clk
0:01:19.5]} 26. c3 {[%clk 0:01:05.7]} 26... a4 {[%clk 0:01:19.6]} 27. Bc2 {[%clk
0:01:04.1]} 27... Qa7 {[%clk 0:01:08.8]} 28. d4 {[%clk 0:01:02.3]} 28... b4
{[%clk 0:01:05.6]} 29. axb4 {[%clk 0:00:51.8]} 29... a3 {[%clk 0:01:05.5]} 30.
bxa3 {[%clk 0:00:52.1]} 30... Qxa3+ {[%clk 0:01:04.8]} 31. Kd2 {[%clk
0:00:52.3]} 31... Qb2 {[%clk 0:00:51.1]} 32. Nd1 {[%clk 0:00:47.8]} 32... Qa2
{[%clk 0:00:30.3]} 33. Rxf6 {[%clk 0:00:46.6]} 33... Rxf6 {[%clk 0:00:30.6]} 34.
Ne3 {[%clk 0:00:47]} 34... Nf3+ {[%clk 0:00:23.8]} 35. Kc1 {[%clk 0:00:44.4]}
35... Qa1+ {[%clk 0:00:22.5]} 36. Bb1 {[%clk 0:00:42.1]} 36... exd4 {[%clk
0:00:20.4]} 37. Nf5+ {[%clk 0:00:35.4]} 37... Rxf5 {[%clk 0:00:10.5]} 38. exf5
{[%clk 0:00:35.3]} 38... dxc3 {[%clk 0:00:09.2]} 39. Nf4 {[%clk 0:00:18.8]}
39... Nd2 {[%clk 0:00:09]} 40. Qe2+ {[%clk 0:00:18.4]} 40... Kd8 {[%clk
0:00:09]} 41. Ne6+ {[%clk 0:00:17.1]} 41... Ke7 {[%clk 0:00:03.7]} 42. Nd4+
{[%clk 0:00:16.3]} 42... Kd7 {[%clk 0:00:02.5]} 43. Qe6+ {[%clk 0:00:15.8]}
43... Kc7 {[%clk 0:00:01.8]} 44. Qe7+ {[%clk 0:00:16.5]} 44... Kb6 {[%clk
0:00:01.5]} 45. Qd8+ {[%clk 0:00:16.9]} 1-0

[Event "*** Titled Tuesday Blitz"]
[Site "Chess.com"]
[Date "2021.03.02"]
[Round "1"]
[White "esteban062000"]
[Black "federicosellitti"]
[Result "1/2-1/2"]
[WhiteElo "2176"]
[BlackElo "2515"]
[TimeControl "180+1"]
[EndTime "10:07:36 PST"]
[Termination "Game drawn by repetition"]

1. Nf3 {[%clk 0:03:00]} 1... Nf6 {[%clk 0:02:57.3]} 2. c4 {[%clk 0:02:58.8]}
2... c5 {[%clk 0:02:57]} 3. Nc3 {[%clk 0:02:58.8]} 3... Nc6 {[%clk 0:02:57.1]}
4. g3 {[%clk 0:02:59.2]} 4... g6 {[%clk 0:02:57.5]} 5. Bg2 {[%clk 0:02:59]} 5...
Bg7 {[%clk 0:02:58.1]} 6. O-O {[%clk 0:02:59]} 6... O-O {[%clk 0:02:58.6]} 7. e3
{[%clk 0:02:57.2]} 7... e6 {[%clk 0:02:58.5]} 8. d4 {[%clk 0:02:57.3]} 8... cxd4
{[%clk 0:02:59.4]} 9. exd4 {[%clk 0:02:57.9]} 9... d5 {[%clk 0:02:59.9]} 10.
cxd5 {[%clk 0:02:54.1]} 10... Nxd5 {[%clk 0:03:00.8]} 11. Nxd5 {[%clk
0:02:53.9]} 11... exd5 {[%clk 0:02:55]} 12. Bg5 {[%clk 0:02:42.7]} 12... Qb6
{[%clk 0:02:52.8]} 13. Qb3 {[%clk 0:02:38.5]} 13... Nxd4 {[%clk 0:02:09.1]} 14.
Nxd4 {[%clk 0:02:04.6]} 14... Bxd4 {[%clk 0:02:10]} 15. Bxd5 {[%clk 0:01:59.2]}
15... Qxb3 {[%clk 0:01:55.1]} 16. Bxb3 {[%clk 0:01:52.7]} 16... Bxb2 {[%clk
0:01:50.8]} 17. Rab1 {[%clk 0:01:48.8]} 17... Ba3 {[%clk 0:01:50.3]} 18. Bd5
{[%clk 0:01:43.7]} 18... Bc5 {[%clk 0:00:59.9]} 19. Bxb7 {[%clk 0:01:11.2]}
19... Rb8 {[%clk 0:00:56.7]} 20. Bxc8 {[%clk 0:01:05.1]} 20... Rfxc8 {[%clk
0:00:57.6]} 21. Rxb8 {[%clk 0:00:37.3]} 21... Rxb8 {[%clk 0:00:58.5]} 22. Rc1
{[%clk 0:00:37.3]} 22... Rb5 {[%clk 0:00:56.4]} 23. a4 {[%clk 0:00:33.5]} 23...
Ra5 {[%clk 0:00:55.2]} 24. Bd2 {[%clk 0:00:33.4]} 24... Bxf2+ {[%clk 0:00:42.6]}
25. Kxf2 {[%clk 0:00:31.7]} 25... Rxa4 {[%clk 0:00:43.5]} 26. Bh6 {[%clk
0:00:30.8]} 26... f5 {[%clk 0:00:40.6]} 27. Rc8+ {[%clk 0:00:29.8]} 27... Kf7
{[%clk 0:00:40.6]} 28. Rc7+ {[%clk 0:00:30.7]} 28... Ke6 {[%clk 0:00:41]} 29.
Rxh7 {[%clk 0:00:30.4]} 29... Ra2+ {[%clk 0:00:40.3]} 30. Kg1 {[%clk 0:00:30.4]}
30... Ra1+ {[%clk 0:00:34.8]} 31. Kg2 {[%clk 0:00:30.2]} 31... Ra2+ {[%clk
0:00:35.7]} 32. Kh3 {[%clk 0:00:29.3]} 32... a5 {[%clk 0:00:36.3]} 33. Ra7
{[%clk 0:00:28.8]} 33... a4 {[%clk 0:00:35.1]} 34. Bg7 {[%clk 0:00:25.3]} 34...
g5 {[%clk 0:00:33.9]} 35. Ra5 {[%clk 0:00:24.8]} 35... a3 {[%clk 0:00:18.7]} 36.
Bf8 {[%clk 0:00:23]} 36... g4+ {[%clk 0:00:19.2]} 37. Kh4 {[%clk 0:00:22.6]}
37... Rxh2+ {[%clk 0:00:20.1]} 38. Kg5 {[%clk 0:00:22.7]} 38... a2 {[%clk
0:00:21]} 39. Ra6+ {[%clk 0:00:19.6]} 39... Kd5 {[%clk 0:00:17.1]} 40. Kxf5
{[%clk 0:00:18.9]} 40... Kc4 {[%clk 0:00:12.8]} 41. Kxg4 {[%clk 0:00:19]} 41...
Kb3 {[%clk 0:00:13.5]} 42. Bg7 {[%clk 0:00:18.8]} 42... Rh7 {[%clk 0:00:12.3]}
43. Be5 {[%clk 0:00:18.8]} 43... Re7 {[%clk 0:00:11.9]} 44. Bf4 {[%clk
0:00:19.1]} 44... Re4 {[%clk 0:00:08.7]} 45. Rb6+ {[%clk 0:00:19.2]} 45... Kc2
{[%clk 0:00:05.2]} 46. Ra6 {[%clk 0:00:19.6]} 46... Kb3 {[%clk 0:00:05.6]} 47.
Kf3 {[%clk 0:00:19.9]} 47... Rc4 {[%clk 0:00:04.7]} 48. Rb6+ {[%clk 0:00:20.2]}
48... Kc2 {[%clk 0:00:04.7]} 49. Ra6 {[%clk 0:00:20.7]} 49... Kb3 {[%clk
0:00:04.4]} 50. Be5 {[%clk 0:00:21.2]} 50... Rc5 {[%clk 0:00:03.4]} 51. Bf4
{[%clk 0:00:21.4]} 51... Rc4 {[%clk 0:00:03.4]} 1/2-1/2

[Event "*** Titled Tuesday Blitz"]
[Site "Chess.com"]
[Date "2021.03.02"]
[Round "1"]
[White "Vasily85"]
[Black "Zhigalko_Sergei"]
[Result "0-1"]
[WhiteElo "2453"]
[BlackElo "2910"]
[TimeControl "180+1"]
[EndTime "10:07:38 PST"]
[Termination "Zhigalko_Sergei won on time"]

1. d4 {[%clk 0:02:58.2]} 1... Nf6 {[%clk 0:02:57.8]} 2. Bg5 {[%clk 0:02:57.4]}
2... e6 {[%clk 0:02:54]} 3. e4 {[%clk 0:02:56.1]} 3... h6 {[%clk 0:02:54.1]} 4.
Bxf6 {[%clk 0:02:56.5]} 4... Qxf6 {[%clk 0:02:55]} 5. c3 {[%clk 0:02:56.7]} 5...
g6 {[%clk 0:02:53.6]} 6. Nf3 {[%clk 0:02:55]} 6... Bg7 {[%clk 0:02:54]} 7. Bd3
{[%clk 0:02:51.7]} 7... O-O {[%clk 0:02:53.8]} 8. Nbd2 {[%clk 0:02:47.6]} 8...
d6 {[%clk 0:02:54.1]} 9. O-O {[%clk 0:02:47.8]} 9... Nd7 {[%clk 0:02:53.4]} 10.
a4 {[%clk 0:02:43.3]} 10... a5 {[%clk 0:02:40.7]} 11. Nc4 {[%clk 0:02:28.8]}
11... e5 {[%clk 0:02:36.8]} 12. h3 {[%clk 0:02:13]} 12... Qe7 {[%clk 0:02:35.3]}
13. Re1 {[%clk 0:02:10.7]} 13... Re8 {[%clk 0:02:34.3]} 14. Bf1 {[%clk
0:01:59.3]} 14... Nf8 {[%clk 0:02:26.9]} 15. dxe5 {[%clk 0:01:50]} 15... dxe5
{[%clk 0:02:26.1]} 16. Qd5 {[%clk 0:01:50.4]} 16... Rd8 {[%clk 0:02:01.1]} 17.
Qb5 {[%clk 0:01:50.6]} 17... c6 {[%clk 0:01:45.9]} 18. Qb6 {[%clk 0:01:46.5]}
18... Ra6 {[%clk 0:01:37]} 19. Qe3 {[%clk 0:01:33.1]} 19... Qc7 {[%clk
0:01:33.6]} 20. Rad1 {[%clk 0:01:31.4]} 20... Rxd1 {[%clk 0:01:29]} 21. Rxd1
{[%clk 0:01:32.3]} 21... Be6 {[%clk 0:01:27.6]} 22. Ncxe5 {[%clk 0:00:40.8]}
22... Ra8 {[%clk 0:01:23]} 23. Nc4 {[%clk 0:00:38.5]} 23... Nd7 {[%clk 0:01:23]}
24. Rd2 {[%clk 0:00:29.2]} 24... Re8 {[%clk 0:01:14.3]} 25. Nd6 {[%clk
0:00:25.6]} 25... Re7 {[%clk 0:01:14]} 26. Bc4 {[%clk 0:00:20.9]} 26... Nb6
{[%clk 0:01:05.9]} 27. Bxe6 {[%clk 0:00:20.4]} 27... Rxe6 {[%clk 0:01:06.8]} 28.
e5 {[%clk 0:00:16.1]} 28... Nxa4 {[%clk 0:01:00.5]} 29. Qd4 {[%clk 0:00:10.9]}
29... Nb6 {[%clk 0:00:54.9]} 30. Qc5 {[%clk 0:00:09.2]} 30... Nd7 {[%clk
0:00:52.1]} 31. Qa7 {[%clk 0:00:08.1]} 31... Nxe5 {[%clk 0:00:50.3]} 32. Nxe5
{[%clk 0:00:08.1]} 32... Bxe5 {[%clk 0:00:34]} 33. Nxb7 {[%clk 0:00:07.6]} 33...
Kg7 {[%clk 0:00:24.9]} 34. Qa6 {[%clk 0:00:05.9]} 34... Bxc3 {[%clk 0:00:19.5]}
35. Rd1 {[%clk 0:00:05]} 35... Bb4 {[%clk 0:00:18.8]} 36. Ra1 {[%clk 0:00:03.2]}
36... Re5 {[%clk 0:00:13.9]} 37. Qa8 {[%clk 0:00:01.7]} 37... Qb6 {[%clk
0:00:09.4]} 38. Nd8 {[%clk 0:00:01.8]} 38... Re2 {[%clk 0:00:04.7]} 39. Rf1
{[%clk 0:00:01.6]} 39... Bc5 {[%clk 0:00:05.2]} 40. Qb7 {[%clk 0:00:01.3]} 40...
Bxf2+ {[%clk 0:00:05.5]} 41. Kh1 {[%clk 0:00:01.7]} 41... Qxb7 {[%clk
0:00:05.7]} 0-1